Cogmind - Beta 14 @@@ ROGUE MODE // 2024.10.22 @ 00:25:04 Player: XDRM Result: Destroyed by X-77 Beamer with Gatling Laser Performance ------------- Evolutions (6) 3000 Regions Visited (16) 3200 Robots Destroyed (105) 525 Value Destroyed (3772) 3772 Prototype IDs (27) 540 Alien Tech Used (0) 0 Bonus (2753) 2753 TOTAL SCORE: 13790 Bonus ------- High Alert Combat Kills 1031 Follower Combat Kills 1139 Entered DSFs 500 Aligned with FarCom 300 Friendly Fire -217 Cogmind --------- Core Integrity 0/1150 Matter 67/300 Energy 93/100 System Corruption 21% Temperature Critical (582) Movement Core (50) Location -4/Armory Parts ------- > --- POWER (2) -------- (None) > --- PROPULSION (5) --- (None) > --- UTILITY (10) ----- (None) > --- WEAPON (2) ------- (None) > --- INVENTORY (5) ---- (None) Peak State ------------ > --- POWER ------------ Light Nuclear Core Antimatter Reactor > --- PROPULSION ------- Heavy Treads Biometal Heavy Treads > --- UTILITY ---------- Improved Cooling System Lightpack 2.0 Layered Heavy Armor Plating Layered Heavy Armor Plating Layered Heavy Armor Plating > --- WEAPON ----------- Enhanced Nova Cannon Enhanced Nova Cannon > --- INVENTORY -------- Heavy Treads Heavy Treads Improved Cooling System Coolant Injector Improved Trap Scanner Advanced Targeting Computer Experimental Targeting Computer Recoil Stabilizer Kinecellerator Weapon Cycler Improved Weapon Cycler Advanced Reaction Control System Advanced Reaction Control System Improved Propulsion Shielding Layered Heavy Armor Plating Layered Heavy Armor Plating Damper Plating Improved Thermal Shield Relay Coupler [Specialist] Backup Laser III Variable Charge Gun Enhanced Nova Cannon Enhanced Nova Cannon Enhanced Nova Cannon Enhanced Nova Cannon Enhanced Nova Cannon Enhanced Nova Cannon Enhanced Nova Cannon Mass Driver Heavy Missile Launcher Improved Remote Datajack Heavy Flail [Rating: 151] Favorites ----------- Power Deuterium Engine Engine Deuterium Engine Power Core Light Nuclear Core Reactor Antimatter Reactor Propulsion Compact Wheel Treads Armored Medium Treads Leg Flexi-carbon Leg Wheel Compact Wheel Flight Unit Cesium-ion Thruster Utility Hacking Suite Device Improved Cooling System Storage Lightpack 2.0 Processor Machine Analyzer Hackware Hacking Suite Protection Layered Heavy Armor Plating Weapon Advanced Beam Rifle Energy Gun Advanced Beam Rifle Energy Cannon Enhanced Nova Cannon Ballistic Gun Hypervelocity Railgun Ballistic Cannon Linear Accelerator Launcher Heavy Missile Launcher Special Weapon Mining Laser Impact Weapon Heavy Flail Build | -11 -10 -9 -9 -9 -8 -8 -7 -6 -5 -5 -5 -5 -4 -4 -4 -4 ------- Run | Yrd Mat Mat Min Exi Min Mat Fac Fac Fac Was Fac DSF Fac Was Fac Arm Slots Evolved 12 | . . 2 . . . 2 2 2 2 . . . 2 . . . Power 1 | . . . . . . . . . . . . . 1 . . . Propulsion 3 | . . 2 . . . . . . . . . . 1 . . . Utility 8 | . . . . . . 2 2 2 2 . . . . . . . Weapon . | . . . . . . . . . . . . . . . . . Parts Attached 182 | 9 12 10 . . . 27 12 8 13 1 . 6 5 10 1 68 Power 19 | 1 . 2 . . . 1 . . 3 . . . 1 1 . 10 Engine 6 | 1 . 2 . . . 1 . . 2 . . . . . . . Core 4 | . . . . . . . . . 1 . . . 1 . . 2 Reactor 9 | . . . . . . . . . . . . . . 1 . 8 Propulsion 43 | 3 . 4 . . . 8 4 . 4 . . 2 . 3 . 15 Treads 12 | . . . . . . 2 . . . . . . . 3 . 7 Leg 12 | . . . . . . 4 . . . . . . . . . 8 Wheel 8 | 3 . 4 . . . 1 . . . . . . . . . . Hover . | . . . . . . . . . . . . . . . . . Flight 11 | . . . . . . 1 4 . 4 . . 2 . . . . Utility 52 | 2 2 1 . . . 4 2 2 5 1 . . 3 4 . 26 Device 17 | 1 . . . . . . . . 2 1 . . 3 1 . 9 Storage 4 | 1 2 . . . . 1 . . . . . . . . . . Processor 8 | . . . . . . . 1 . 1 . . . . . . 6 Hackware 6 | . . . . . . 1 1 2 2 . . . . . . . Protection 17 | . . 1 . . . 2 . . . . . . . 3 . 11 Artifact . | . . . . . . . . . . . . . . . . . Weapon 68 | 3 10 3 . . . 14 6 6 1 . . 4 1 2 1 17 Energy Gun 15 | . 2 1 . . . 4 3 3 . . . . . . 1 1 Energy Cannon 5 | . . . . . . . . 1 . . . . . . . 4 Ballistic Gun 27 | 3 5 2 . . . 6 . . . . . 3 . . . 8 Ballistic Cannon 5 | . . . . . . . . . . . . 1 . 1 . 3 Launcher 7 | . 3 . . . . 2 . . . . . . . 1 . 1 Special Weapon 1 | . . . . . . 1 . . . . . . . . . . Impact Weapon 8 | . . . . . . 1 3 2 1 . . . 1 . . . Slashing Weapon . | . . . . . . . . . . . . . . . . . Piercing Weapon . | . . . . . . . . . . . . . . . . . Special Melee Weapon . | . . . . . . . . . . . . . . . . . Unidentified Prototypes 3 | . . . . . . 2 . . . . . . . . . 1 Parts Lost 62 | . 1 4 . . . 6 . . . . . 9 2 . 1 39 Power 8 | . . . . . . . . . . . . 1 . . 1 6 Propulsion 22 | . . 2 . . . 4 . . . . . 4 1 . . 11 Utility 22 | . . 1 . . . 1 . . . . . 3 1 . . 16 Weapon 10 | . 1 1 . . . 1 . . . . . 1 . . . 6 Highest Loss Streak 16 | . 1 4 . . . 2 . . . . . 6 2 . 1 16 To Critical Strikes 2 | . . . . . . . . . . . . . . . . 2 Average Slot Usage (%) 79 | . 99 96 100 100 100 76 81 85 75 82 82 65 58 65 57 67 Engine 6 | . 14 11 11 11 11 9 7 6 4 5 5 4 . 3 . . Reactor 1 | . . . . . . . . . . . . . . . 5 7 Treads 3 | . . . . . . 5 . . . . . . . 8 10 10 Leg 3 | . . . . . . 12 . . . . . . . . . 8 Wheel 10 | . 28 42 44 44 44 12 . . . . . . . . . . Flight 7 | . . . . . . . 30 26 22 23 23 20 8 . . . Device 5 | . 14 5 . . . . . . 2 . 5 1 13 14 5 10 Storage 7 | . 14 11 11 11 11 9 7 6 5 5 5 5 5 5 5 2 Processor 3 | . . . . . . . 6 6 5 10 5 5 5 4 . 5 Hackware 8 | . . . . . . 6 14 25 29 29 29 23 13 9 . . Protection 3 | . . 3 11 11 11 2 . . . . . . . . 15 10 Energy Gun 4 | . 6 9 11 11 11 4 9 9 . . . . . 4 3 . Ballistic Gun 7 | . 20 12 11 11 11 12 . . . . . . . . . 6 Impact Weapon 1 | . . . . . . . 2 3 2 5 5 1 5 4 . . Peak Build Rating 151 | 8 8 14 14 16 16 60 70 78 87 87 85 96 98 138 138 151 Average Rating 64 | 6 7 11 13 14 16 51 67 75 78 86 84 84 94 113 137 111 On Entrance 57 | . 8 8 13 14 16 16 58 70 77 87 85 83 75 91 136 135 Naked Turns 2 | . . . . . . . . . . . . . . . . 2 Heaviest Build 119 | 14 31 36 36 36 36 23 19 19 17 18 18 18 19 104 104 119 Greatest Support 154 | 32 32 58 52 52 52 52 19 19 19 19 19 22 27 154 145 151 Greatest Overweight (x) 1 | . . . . . . 1 . . 1 . . . . . . 1 Average Overweight (x) . | . . . . . . . . . . . . . . . . . Largest Inventory Capacity 40 | 8 15 15 15 15 15 40 40 40 40 40 40 40 40 40 40 40 Average Capacity 29 | 7 14 15 15 15 15 39 40 40 40 40 40 40 40 40 40 19 Most Carried 40 | 8 13 14 14 15 15 40 40 39 40 39 39 40 37 40 32 40 Average Carried 23 | 5 11 11 12 14 15 22 36 35 34 38 35 38 36 38 32 17 Final Capacity 40 | 8 15 15 15 15 15 40 40 40 40 40 40 40 40 40 40 5 Final Carried 39 | 8 12 12 14 15 15 32 38 39 39 39 32 36 36 32 32 . Class Distribution -------------------- 28% | Hauler-Mutant 20% | Mutant 17% | Scavenger-Mutant 10% | Hauler-Sprinter 10% | Hacker-Sprinter 6% | Hauler-Scout 3% | Hacker-Scout Dominant Class ---------------- Mutant | -10/Materials Scavenger-Mutant | -9/Materials Scavenger-Mutant | -9/Mines Scavenger-Mutant | -9/Exiles Scavenger-Mutant | -8/Mines Hauler-Mutant | -8/Materials Hauler-Sprinter | -7/Factory Hacker-Sprinter | -6/Factory Hacker-Scout | -5/Factory Hacker-Sprinter | -5/Waste Hacker-Sprinter | -5/Factory Hacker-Sprinter | -5/DSF Hauler-Scout | -4/Factory Hauler-Assassin | -4/Waste Hauler-Mutant | -4/Factory Scavenger-Mutant | -4/Armory Resources | -11 -10 -9 -9 -9 -8 -8 -7 -6 -5 -5 -5 -5 -4 -4 -4 -4 ----------- Run | Yrd Mat Mat Min Exi Min Mat Fac Fac Fac Was Fac DSF Fac Was Fac Arm Matter Collected 4854 | 505 287 200 145 . . 718 207 . 173 . . . 86 104 208 2221 Remotely . | . . . . . . . . . . . . . . . . . Salvage Created 4188 | 253 348 200 . . . 833 74 126 . . . 136 86 . 25 2107 Parts 252 | 24 36 17 . . . 57 1 4 . . . 3 1 . 1 108 Haulers Intercepted 2 | . . . . . . . . 1 . . . . 1 . . . Recyclers Shooed 1 | . . . . . . . . . . . . . . . 1 . Parts Field Recycled . | . . . . . . . . . . . . . . . . . Retrieved Matter . | . . . . . . . . . . . . . . . . . Parts Self-Destructed . | . . . . . . . . . . . . . . . . . Prevented . | . . . . . . . . . . . . . . . . . Kills | -11 -10 -9 -9 -9 -8 -8 -7 -6 -5 -5 -5 -5 -4 -4 -4 -4 ------- Run | Yrd Mat Mat Min Exi Min Mat Fac Fac Fac Was Fac DSF Fac Was Fac Arm Combat Hostiles Destroyed 73 | . 12 3 . . . 20 1 . . . . 2 . . 1 34 Guns 47 | . 9 3 . . . 12 1 . . . . . . . . 22 Cannons 12 | . . . . . . . . . . . . 2 . . 1 9 AOE 14 | . 3 . . . . 8 . . . . . . . . . 3 Classes Destroyed 18 | 3 5 1 . . . 1 1 1 . . . 1 . . . 5 Worker 6 | 2 2 . . . . 1 . . . . . . . . 1 . Builder 3 | . 1 . . . . . . 2 . . . . . . . . Tunneler 9 | 7 1 1 . . . . . . . . . . . . . . Hauler 2 | . . . . . . . . 1 . . . . 1 . . . Recycler 2 | 1 . . . . . 1 . . . . . . . . . . Mechanic 1 | . . . . . . . . . . . . . . . . 1 Operator 4 | . 1 1 . . . 1 1 . . . . . . . . . Watcher 5 | . 3 . . . . 1 . . . . . . . . . 1 Swarmer 24 | . 9 . . . . 7 . . . . . . . . 1 7 Cutter 2 | . . . . . . . . . . . . 2 . . . . Grunt 16 | . 3 1 . . . 6 . . . . . . . . . 6 Brawler 2 | . . . . . . . . . . . . . . . . 2 Duelist 3 | . . . . . . . . . . . . . . . . 3 Protector 1 | . . . . . . . . . . . . . . . . 1 Sentry 9 | . . 2 . . . 4 . . . . . . . . . 3 Specialist 4 | . . . . . . . . . . . . . . . . 4 Hunter 5 | . . . . . . 3 . . . . . . . . . 2 Programmer 7 | . . . . . . . 1 . . . . . . . . 6 Best Kill Streak 8 | 3 8 2 . . . 5 1 2 . . . 2 1 . 1 4 Combat Bots Only 5 | . 4 1 . . . 5 1 . . . . 2 . . 1 4 Max Kills in Single Turn 3 | 1 3 1 . . . 3 1 1 . . . 1 1 . 1 3 Gunslinging 1 | . 1 . . . . . . . . . . . . . . . Exploded 3 | . 3 . . . . 3 . . . . . . . . . 3 Melee . | . . . . . . . . . . . . . . . . . Uniques/NPCs Destroyed . | . . . . . . . . . . . . . . . . . Combat | -11 -10 -9 -9 -9 -8 -8 -7 -6 -5 -5 -5 -5 -4 -4 -4 -4 -------- Run | Yrd Mat Mat Min Exi Min Mat Fac Fac Fac Was Fac DSF Fac Was Fac Arm Hostile Shots Fired 1012 | . 40 26 . . 2 89 25 6 2 . . 36 16 . 49 721 Missed 317 | . 11 2 . . . 30 20 3 2 . . 17 10 . 18 204 Damage Taken 13572 | . 369 351 . . 29 881 90 37 . . . 834 344 . 774 9863 Core 1733 | . 147 98 . . . 74 22 . . . . 240 74 . 23 1055 Absorbed by Shields 19 | . . . . . . . . . . . . 19 . . . . Redirected to Shielding 3 | . . . . . . . . . . . . . . . . 3 Ignored by Resistances 149 | . . . . . . . . . . . . . . . . 149 Regen/Repaired (Parts) 233 | . 40 . . . . . . . 14 . . . . 12 25 142 Core Remaining (%) 82 | 100 41 . . . 75 86 96 100 . . . 76 . . . . Volleys Fired 386 | 32 52 20 . . . 79 9 3 . . . 5 . . 14 172 Largest 2 | 2 2 2 . . . 2 2 2 . . . 2 . . 2 2 Hottest 240 | 40 70 68 . . . 122 122 122 . . . 90 . . 132 240 Shots Fired 690 | 64 99 40 . . . 155 17 6 . . . 10 . . 25 274 Gun 606 | 64 97 40 . . . 148 17 6 . . . 7 . . 7 220 Cannon 70 | . . . . . . . . . . . . 3 . . 14 53 Launcher 13 | . 2 . . . . 6 . . . . . . . . 4 1 Special 1 | . . . . . . 1 . . . . . . . . . . Kinetic 600 | 64 85 30 . . . 127 . . . . . 10 . . 14 270 Thermal 36 | . . . . . . 3 17 6 . . . . . . 7 3 Explosive 13 | . 2 . . . . 6 . . . . . . . . 4 1 Electromagnetic 41 | . 12 10 . . . 19 . . . . . . . . . . Robot Hit Streak 17 | 7 8 8 . . . 16 9 10 . . . 7 . . 5 17 Robot Miss Streak 5 | 2 4 1 . . . 3 1 1 . . . 2 . . 5 5 Penetration Max 2 | . . . . . . . . . . . . . . . . 2 Secondary Targets 5 | . 2 . . . . 1 . . . . . . . . . 2 Max Gunslinging Chain 1 | . 1 . . . . 1 . . . . . . . . . 1 Shots Hit Robots 433 | 43 61 29 . . . 94 12 6 . . . 5 4 . 14 165 Core Hits 168 | 13 29 8 . . . 39 4 2 . . . 4 . . 8 61 Critical Kills 25 | . . 1 . . . . . . . . . . . . . 24 Critical Parts Destroyed 24 | . . 1 . . . . . . . . . . 1 . . 22 Critical Strikes 61 | . . 2 . . . . . . . . . . 1 . 1 57 Destroy 56 | . . 2 . . . . . . . . . . . . . 54 Blast 4 | . . . . . . . . . . . . . . . 1 3 Smash 1 | . . . . . . . . . . . . . 1 . . . Melee Attacks 62 | . . . . . . 1 16 13 9 . . . 23 . . . Impact 62 | . . . . . . 1 16 13 9 . . . 23 . . . Slashing . | . . . . . . . . . . . . . . . . . Piercing . | . . . . . . . . . . . . . . . . . Sneak Attacks 3 | . . . . . . . . 2 . . . . 1 . . . Combat Hostiles . | . . . . . . . . . . . . . . . . . Follow-up Attacks . | . . . . . . . . . . . . . . . . . Damage Inflicted 8814 | 415 1244 267 . . . 1957 290 234 . . . 143 327 . 967 2970 Guns 4296 | 415 634 267 . . . 1470 290 80 . . . 55 . . 92 993 Cannons 2029 | . . . . . . . . . . . . 88 . . 306 1635 Explosions 1969 | . 610 . . . . 487 . . . . . . . . 530 342 Melee 481 | . . . . . . . . 154 . . . . 327 . . . Ramming 39 | . . . . . . . . . . . . . . . 39 . Kinetic 5360 | 415 529 180 . . . 1240 . . . . . 143 . . 306 2547 Thermal 1036 | . 473 . . . . 20 290 80 . . . . . . 92 81 Explosive 1496 | . 137 . . . . 487 . . . . . . . . 530 342 Electromagnetic 402 | . 105 87 . . . 210 . . . . . . . . . . Impact 481 | . . . . . . . . 154 . . . . 327 . . . Slashing . | . . . . . . . . . . . . . . . . . Piercing . | . . . . . . . . . . . . . . . . . Highest Corruption 21 | . 1 . . . 1 . . . . . . . 7 7 7 21 Average Corruption 11 | . 1 . . . 1 . . . . . . . 7 7 7 14 Corruption Purged . | . . . . . . . . . . . . . . . . . Corruption Blocked . | . . . . . . . . . . . . . . . . . Effects 96 | . . . . . . . . . . . . . 4 7 12 73 Message Errors 20 | . . . . . . . . . . . . . 1 4 3 12 Matter Fused 24 | . . . . . . . . . . . . . . 1 3 20 Heat Flow Errors 10 | . . . . . . . . . . . . . 1 1 1 7 Energy Discharges 9 | . . . . . . . . . . . . . 1 1 3 4 Parts Rejected 2 | . . . . . . . . . . . . . . . . 2 Parts Fused 1 | . . . . . . . . . . . . . 1 . . . Data Loss (minor) 5 | . . . . . . . . . . . . . . . . 5 Data Loss (major) 3 | . . . . . . . . . . . . . . . 2 1 Misfires 6 | . . . . . . . . . . . . . . . . 6 Misdirections 2 | . . . . . . . . . . . . . . . . 2 Weapon Failures 14 | . . . . . . . . . . . . . . . . 14 Overload Shots . | . . . . . . . . . . . . . . . . . Overflow Damage 291 | . 43 . . . . 16 . 104 . . . . 81 . 23 24 Projectiles 18 | . . . . . . . . . . . . . . . 8 10 Explosions 88 | . 43 . . . . 16 . . . . . . . . 15 14 Melee 185 | . . . . . . . . 104 . . . . 81 . . . Knockbacks 15 | . . . . . . . . 1 . . . 1 . . 2 11 Impact 1 | . . . . . . . . 1 . . . . . . . . Kinetic 13 | . . . . . . . . . . . . 1 . . 1 11 Secondary 1 | . . . . . . . . . . . . . . . 1 . Self-Inflicted Damage 138 | . 88 . . . . . . . . . . . . . . 50 Shots 3 | . 1 . . . . . . . . . . . . . . 2 Rammed 2 | . . . . . . . . . . . . . . . 2 . Targets Rammed 2 | . . . . . . . . . . . . . . . 2 . Kicked . | . . . . . . . . . . . . . . . . . Crushed . | . . . . . . . . . . . . . . . . . Highest Temperature 629 | . 24 44 . . . 138 240 121 . . . . 247 116 202 629 Average Temperature 114 | . 12 12 . . . 40 106 61 . . . . 130 45 63 173 Received Heat Transfer 2206 | . 60 111 . . 18 126 . 9 . . . 24 . . 141 1717 Effects 20 | . . . . . . . . . . . . . . . . 20 Shutdowns 6 | . . . . . . . . . . . . . . . . 6 Energy Bleed 3 | . . . . . . . . . . . . . . . . 3 Interference 3 | . . . . . . . . . . . . . . . . 3 Matter Decay 2 | . . . . . . . . . . . . . . . . 2 Short Circuit 2 | . . . . . . . . . . . . . . . . 2 Damage (minor) 2 | . . . . . . . . . . . . . . . . 2 Damage (core) 2 | . . . . . . . . . . . . . . . . 2 Siege Activations . | . . . . . . . . . . . . . . . . . Robots Corrupted 2 | . . . . . . . . 1 . . . . 1 . . . Combat Hostiles . | . . . . . . . . . . . . . . . . . Parts Fried 5 | . . . . . . 1 . 4 . . . . . . . . Impact Corruptions 5 | . . . . . . . . 3 . . . . 2 . . . Robots Melted . | . . . . . . . . . . . . . . . . . Combat Hostiles . | . . . . . . . . . . . . . . . . . Parts Melted 6 | . . . . . . . 3 1 . . . . . . 1 1 Heat Transferred 1401 | . 550 . . . . 37 444 148 . . . . . . 148 74 Parts Sabotaged . | . . . . . . . . . . . . . . . . . Parts Stolen . | . . . . . . . . . . . . . . . . . Parts Stripped . | . . . . . . . . . . . . . . . . . Power Chain Reactions 2 | . 2 . . . . . . . . . . . . . . . Alert | -11 -10 -9 -9 -9 -8 -8 -7 -6 -5 -5 -5 -5 -4 -4 -4 -4 ------- Run | Yrd Mat Mat Min Exi Min Mat Fac Fac Fac Was Fac DSF Fac Was Fac Arm Peak Influence 1584 | 50 270 137 51 . . 399 357 264 234 141 84 108 98 34 1584 956 Initial 704 | . 32 42 51 . . . 97 63 8 81 84 58 32 34 23 704 Average 326 | 23 167 108 51 . . 272 212 119 100 124 84 70 64 34 910 836 Maximum Alert Level 4 | . 1 . . . . 1 1 1 1 . . . . . 4 3 Low Security (%) 46 | 100 61 100 100 . 100 12 32 90 82 100 100 100 100 100 9 . Level 1 30 | . 38 . . . . 87 67 9 17 . . . . . 11 . Level 2 . | . . . . . . . . . . . . . . . 14 . Level 3 18 | . . . . . . . . . . . . . . . 5 99 Level 4 3 | . . . . . . . . . . . . . . . 59 . Level 5 . | . . . . . . . . . . . . . . . . . High Security . | . . . . . . . . . . . . . . . . . Max Security . | . . . . . . . . . . . . . . . . . Squads Dispatched 43 | . 3 2 . . 1 3 4 5 3 . . 3 . . 6 13 Investigation 15 | . 2 . . . 1 1 4 2 3 . . . . . 2 . Extermination 3 | . . . . . . . . . . . . . . . . 3 Reinforcement 22 | . 1 2 . . . 2 . 3 . . . 3 . . 3 8 Assault 3 | . . . . . . . . . . . . . . . 1 2 Garrison . | . . . . . . . . . . . . . . . . . Intercept . | . . . . . . . . . . . . . . . . . Searches Triggered . | . . . . . . . . . . . . . . . . . Construction Impeded 2 | . . . . . . 1 . 1 . . . . . . . . Haulers Reinforced 2 | . . . . . . . . . . . . . . . 2 . Active Scanning Responses . | . . . . . . . . . . . . . . . . . Cargo Convoy Interrupts . | . . . . . . . . . . . . . . . . . Stealth | -11 -10 -9 -9 -9 -8 -8 -7 -6 -5 -5 -5 -5 -4 -4 -4 -4 --------- Run | Yrd Mat Mat Min Exi Min Mat Fac Fac Fac Was Fac DSF Fac Was Fac Arm Distress Signals 24 | . 3 3 . . . 4 1 3 1 . . . . . 2 7 Communications Jammed . | . . . . . . . . . . . . . . . . . Distress Signals . | . . . . . . . . . . . . . . . . . Times Spotted 214 | . 25 5 5 . 3 28 15 14 18 6 . 10 4 1 22 58 Peak Tracking Total 11 | . 4 3 3 . 3 5 6 5 9 6 . 4 4 1 7 11 Tactical Retreats 22 | . 2 . . . . . 6 5 4 1 . 2 . . . 2 Traps | -11 -10 -9 -9 -9 -8 -8 -7 -6 -5 -5 -5 -5 -4 -4 -4 -4 ------- Run | Yrd Mat Mat Min Exi Min Mat Fac Fac Fac Was Fac DSF Fac Was Fac Arm Traps Triggered 8 | . 2 . . . . . 1 1 2 . . 1 1 . . . Indirectly . | . . . . . . . . . . . . . . . . . Trap Hack Attempts . | . . . . . . . . . . . . . . . . . Triggered . | . . . . . . . . . . . . . . . . . Disarmed . | . . . . . . . . . . . . . . . . . Reprogrammed . | . . . . . . . . . . . . . . . . . Reused . | . . . . . . . . . . . . . . . . . Traps Extracted . | . . . . . . . . . . . . . . . . . Installed . | . . . . . . . . . . . . . . . . . Triggered . | . . . . . . . . . . . . . . . . . Machines | -11 -10 -9 -9 -9 -8 -8 -7 -6 -5 -5 -5 -5 -4 -4 -4 -4 ---------- Run | Yrd Mat Mat Min Exi Min Mat Fac Fac Fac Was Fac DSF Fac Was Fac Arm Machines Disabled 20 | . 3 . . . . 6 . 1 1 . . 1 . . 7 1 Max in Single Turn 1 | . 1 . . . . 1 . . . . . 1 . . 1 1 Garrison Access 2 | . . . . . . . 1 . . . . . . . 1 . Machines Repaired . | . . . . . . . . . . . . . . . . . Machines Dismantled . | . . . . . . . . . . . . . . . . . Machines Sabotaged . | . . . . . . . . . . . . . . . . . Overloaded Fab Kills . | . . . . . . . . . . . . . . . . . Hacking | -11 -10 -9 -9 -9 -8 -8 -7 -6 -5 -5 -5 -5 -4 -4 -4 -4 --------- Run | Yrd Mat Mat Min Exi Min Mat Fac Fac Fac Was Fac DSF Fac Was Fac Arm Machines Accessed 65 | . 7 3 . 1 2 7 12 13 11 . 1 . 4 . 3 1 Terminals 46 | . 5 3 . . 2 6 9 10 5 . 1 . 2 . 2 1 Fabricators 5 | . . . . . . . 2 1 2 . . . . . . . Repair Stations 3 | . 1 . . . . . . . 1 . . . 1 . . . Recycling Units 3 | . 1 . . . . . . . 1 . . . 1 . . . Scanalyzers 1 | . . . . . . . . 1 . . . . . . . . Garrison Access 6 | . . . . . . 1 1 1 2 . . . . . 1 . Total Hacks 183 | . 24 6 . 1 5 20 25 31 43 . 1 . 19 . 7 1 Successful 107 | . 14 3 . 1 1 8 17 26 24 . 1 . 10 . 2 . Failed 76 | . 10 3 . . 4 12 8 5 19 . . . 9 . 5 1 Catastrophic 16 | . . 2 . . 2 . 1 1 2 . . . 4 . 3 1 Database Lockouts . | . . . . . . . . . . . . . . . . . Manual 141 | . 20 6 . 1 5 17 18 24 33 . . . 11 . 5 1 Terminals 143 | . 18 6 . . 5 17 20 26 29 . 1 . 16 . 4 1 Fabricators 11 | . . . . . . . 4 3 4 . . . . . . . Repair Stations 8 | . 2 . . . . . . . 4 . . . 2 . . . Recycling Units 7 | . 4 . . . . . . . 2 . . . 1 . . . Scanalyzers 1 | . . . . . . . . 1 . . . . . . . . Garrison Access 12 | . . . . . . 3 1 1 4 . . . . . 3 . Terminal Hacks 35 | . 5 . . 1 1 2 3 11 6 . 1 . 4 . 1 . Record 1 | . . . . . . . . . . . . . 1 . . . Part Schematic 2 | . . . . . . . 1 1 . . . . . . . . Robot Analysis 5 | . 4 . . . 1 . . . . . . . . . . . Open DSF 5 | . . . . . . . 1 2 1 . 1 . . . . . Level Access Points 1 | . . . . . . . . 1 . . . . . . . . Branch Access Points 1 | . . . . . . . . 1 . . . . . . . . Emergency Access Points 1 | . . . . . . . . . . . . . 1 . . . Terminal Index 6 | . 1 . . . . 1 1 1 1 . . . 1 . . . Fabricator Index 3 | . . . . . . . . 1 1 . . . 1 . . . Alert Level 1 | . . . . . . . . . 1 . . . . . . . Unreport Threat 3 | . . . . . . . . 3 . . . . . . . . Locate Traps 2 | . . . . . . . . 1 1 . . . . . . . Hauler Manifests 1 | . . . . . . 1 . . . . . . . . . . Zone Layout 2 | . . . . . . . . . 1 . . . . . 1 . Derelict Proto ID Bank 1 | . . . . 1 . . . . . . . . . . . . Fabricator Hacks 10 | . . . . . . . 4 2 4 . . . . . . . Load Schematic 5 | . . . . . . . 2 1 2 . . . . . . . Build 5 | . . . . . . . 2 1 2 . . . . . . . Repair Station Hacks 8 | . 2 . . . . . . . 4 . . . 2 . . . Scan Component 4 | . 1 . . . . . . . 2 . . . 1 . . . Repair 4 | . 1 . . . . . . . 2 . . . 1 . . . Recycling Unit Hacks 4 | . 2 . . . . . . . 1 . . . 1 . . . Report Inventory 3 | . 1 . . . . . . . 1 . . . 1 . . . Retrieve Components 1 | . 1 . . . . . . . . . . . . . . . Scanalyzer 1 | . . . . . . . . 1 . . . . . . . . Insert Component 1 | . . . . . . . . 1 . . . . . . . . Garrison Access Hacks 1 | . . . . . . . 1 . . . . . . . . . Seal Access 1 | . . . . . . . 1 . . . . . . . . . Unauthorized Hacks 48 | . 5 3 . . . 6 9 12 9 . . . 3 . 1 . Terminals 42 | . 4 3 . . . 6 9 11 6 . . . 3 . . . Assimilate 5 | . . 1 . . . . 1 2 1 . . . . . . . Botnet 31 | . 4 1 . . . 5 7 8 4 . . . 2 . . . Operators 6 | . . 1 . . . 1 1 1 1 . . . 1 . . . Fabricators . | . . . . . . . . . . . . . . . . . Repair Stations . | . . . . . . . . . . . . . . . . . Recycling Units 2 | . 1 . . . . . . . 1 . . . . . . . Reject 2 | . 1 . . . . . . . 1 . . . . . . . Scanalyzers . | . . . . . . . . . . . . . . . . . Garrison Access 4 | . . . . . . . . 1 2 . . . . . 1 . Reprogram 3 | . . . . . . . . 1 2 . . . . . . . Jam 1 | . . . . . . . . . . . . . . . 1 . Data Cores Recovered . | . . . . . . . . . . . . . . . . . Used . | . . . . . . . . . . . . . . . . . Hacking Detections 49 | . 6 3 . . 2 6 10 8 8 . . . 2 . 3 1 Full Trace Events 12 | . 2 . . . 1 2 3 1 2 . . . . . 1 . Feedback Events 1 | . . . . . 1 . . . . . . . . . . . Corruption 1 | . . . . . 1 . . . . . . . . . . . Feedback Blocked . | . . . . . . . . . . . . . . . . . Robot Schematics Acquired . | . . . . . . . . . . . . . . . . . Robots Built . | . . . . . . . . . . . . . . . . . Authchips . | . . . . . . . . . . . . . . . . . Time . | . . . . . . . . . . . . . . . . . Total Robot Build Rating . | . . . . . . . . . . . . . . . . . Part Schematics Acquired 2 | . . . . . . . 1 1 . . . . . . . . Parts Built 3 | . . . . . . . 2 1 . . . . . . . . Authchips . | . . . . . . . . . . . . . . . . . Time 254 | . . . . . . . 109 36 109 . . . . . . . Total Part Build Rating 9 | . . . . . . . 6 3 . . . . . . . . Parts Repaired 3 | . 1 . . . . . . . 2 . . . . . . . Time 151 | . 26 . . . . . . . 64 . . . 61 . . . Parts Recycled . | . . . . . . . . . . . . . . . . . Recycled Matter . | . . . . . . . . . . . . . . . . . Retrieved Matter . | . . . . . . . . . . . . . . . . . Retrieved Components 1 | . 1 . . . . . . . . . . . . . . . Parts Scanalyzed . | . . . . . . . . . . . . . . . . . Part Schematics Acquired . | . . . . . . . . . . . . . . . . . Parts Damaged . | . . . . . . . . . . . . . . . . . Bothacking | -11 -10 -9 -9 -9 -8 -8 -7 -6 -5 -5 -5 -5 -4 -4 -4 -4 ------------ Run | Yrd Mat Mat Min Exi Min Mat Fac Fac Fac Was Fac DSF Fac Was Fac Arm Used RIF Installer . | . . . . . . . . . . . . . . . . . Robots Hacked . | . . . . . . . . . . . . . . . . . Non-combat . | . . . . . . . . . . . . . . . . . Combat . | . . . . . . . . . . . . . . . . . Robot Hacks Applied . | . . . . . . . . . . . . . . . . . Relay Couplers Released 3 | . . . . . . . 3 . . . . . . . . . Programmers 3 | . . . . . . . 3 . . . . . . . . . Fabnet Peak Effective % . | . . . . . . . . . . . . . . . . . Robots Rewired . | . . . . . . . . . . . . . . . . . Allies Hacked . | . . . . . . . . . . . . . . . . . Hacks Repelled . | . . . . . . . . . . . . . . . . . Allies | -11 -10 -9 -9 -9 -8 -8 -7 -6 -5 -5 -5 -5 -4 -4 -4 -4 -------- Run | Yrd Mat Mat Min Exi Min Mat Fac Fac Fac Was Fac DSF Fac Was Fac Arm Total Allies 28 | . . . . . . . . 4 3 1 . . . 20 . . Largest Group 20 | . . . . . . . . 3 2 1 . . . 20 20 1 Highest-Rated Group 741 | . . . . . . . . 72 82 31 . . . 741 737 26 Highest-Rated Ally 50 | . . . . . . . . 26 41 31 . . . 50 50 26 Total Orders 1 | . . . . . . . . 1 . . . . . . . . STAY 1 | . . . . . . . . 1 . . . . . . . . Ally Attacks 201 | . . . . . . . . 8 10 15 . . . 3 165 . Total Damage 6943 | . . . . . . . . 362 331 253 . . . 65 5932 . Kills 41 | . . . . . . . . 2 5 . . . . 1 33 . Allies Corrupted . | . . . . . . . . . . . . . . . . . Allies Melted 2 | . . . . . . . . . . . . . . . 2 . Intel | -11 -10 -9 -9 -9 -8 -8 -7 -6 -5 -5 -5 -5 -4 -4 -4 -4 ------- Run | Yrd Mat Mat Min Exi Min Mat Fac Fac Fac Was Fac DSF Fac Was Fac Arm Robot Analysis Total 5 | . 4 . . . 1 . . . . . . . . . . . Derelict Logs Recovered . | . . . . . . . . . . . . . . . . . Drone Launches . | . . . . . . . . . . . . . . . . . Drone Recoveries . | . . . . . . . . . . . . . . . . . Exploration | -11 -10 -9 -9 -9 -8 -8 -7 -6 -5 -5 -5 -5 -4 -4 -4 -4 ------------- Run | Yrd Mat Mat Min Exi Min Mat Fac Fac Fac Was Fac DSF Fac Was Fac Arm Turns Passed 8139 | 227 1286 285 136 201 86 1251 896 505 652 63 5 79 373 187 443 1464 Spaces Moved 7442 | 118 683 163 89 222 94 735 1137 966 1447 125 3 132 486 147 262 633 Core 8 | 3 . . . . . . . . . . . . . . . 5 Treads 867 | . . . . . . 168 . . . . . . . 85 262 352 Legs 561 | . . . . . . 285 . . . . . . . . . 276 Wheels 1648 | 115 683 163 89 222 94 282 . . . . . . . . . . Hover . | . . . . . . . . . . . . . . . . . Flight 4358 | . . . . . . . 1137 966 1447 125 3 132 486 62 . . Fastest Speed 28 | 50 100 90 90 90 90 86 28 28 28 28 28 28 37 40 152 50 Average Speed 65 | 96 100 92 90 90 90 120 28 28 28 28 28 30 37 104 152 141 Slowest Speed 190 | 100 100 95 90 90 90 190 28 28 109 28 28 37 40 152 152 190 Overloaded Moves . | . . . . . . . . . . . . . . . . . Propulsion Burnouts . | . . . . . . . . . . . . . . . . . Robots Hopped 25 | . . . . . . . . 14 11 . . . . . . . Cave-ins Triggered 1 | . . . . . . . . . . . . . 1 . . . Exploration Rate (%) 40 | 6 92 14 33 43 28 51 27 27 35 73 . 92 7 77 13 34 Regions Visited 16 Branch Regions 4 Pre-discovered Areas . | . . . . . . . . . . . . . . . . . Known Exits Taken 2 | . . . . . . . . 1 . . 1 . . . . . Unknown Exits Taken 9 | 1 1 1 1 1 1 1 1 . . . . . . . 1 . Scrap Searched 1 | . . . . . 1 . . . . . . . . . . . Spaces Dug 51 | . . . . . . 2 14 11 8 . . . 16 . . . Terrain Destroyed 201 | . 35 . . . . 31 14 11 8 . . . 16 . 39 47 Melee 50 | . . . . . . 1 14 11 8 . . . 16 . . . Projectile 17 | . . . . . . 3 . . . . . . . . 3 11 AOE 123 | . 35 . . . . 26 . . . . . . . . 36 26 Terrain Rammed . | . . . . . . . . . . . . . . . . . Walls Destroyed . | . . . . . . . . . . . . . . . . . Machines Disabled . | . . . . . . . . . . . . . . . . . Actions | -11 -10 -9 -9 -9 -8 -8 -7 -6 -5 -5 -5 -5 -4 -4 -4 -4 --------- Run | Yrd Mat Mat Min Exi Min Mat Fac Fac Fac Was Fac DSF Fac Was Fac Arm Total 9897 | 169 1190 262 144 224 95 943 1674 1158 1678 152 9 161 640 187 279 932 Wait 1525 | . 434 60 54 . 2 33 473 150 166 25 . . 120 3 1 4 Move 7379 | 117 682 162 88 221 93 734 1136 937 1426 124 2 131 486 146 261 633 Hop 24 | . . . . . . . . 14 10 . . . . . . . Pick Up 172 | 9 7 6 2 1 . 44 19 13 28 1 . 6 6 10 . 20 Fast Attach 69 | 7 . 1 . . . 10 1 . 6 . . . 1 2 . 41 Attach 59 | . 1 5 . . . 6 7 2 6 1 . 5 4 5 . 17 Detach 19 | . . . . . . 2 1 . 4 . . 2 . . . 10 Swap 54 | 2 11 4 . . . 11 4 6 1 . . 1 . 3 1 10 Drop 119 | 2 3 4 . 2 . 23 8 2 22 1 7 2 . 18 . 25 Fire 386 | 32 52 20 . . . 79 9 3 . . . 5 . . 14 172 Melee 62 | . . . . . . 1 16 13 9 . . . 23 . . . Ram . | . . . . . . . . . . . . . . . . . Kick . | . . . . . . . . . . . . . . . . . Crush 2 | . . . . . . . . . . . . . . . 2 . Escape Stasis 27 | . . . . . . . . 18 . . . 9 . . . . Rewire . | . . . . . . . . . . . . . . . . . Trap . | . . . . . . . . . . . . . . . . . Miscellaneous . | . . . . . . . . . . . . . . . . . Route ------- -11/Scrapyard -10/Materials (discovered 5 exits: *Mat x3 / [*Min x2]) -9/Materials -9/Mines -9/Exiles -8/Mines -8/Materials -7/Factory -6/Factory (discovered 6 exits: *Fac x4 / *Low x2) -5/Factory -5/Waste -5/Factory -5/DSF -4/Factory -4/Waste -4/Factory -4/Armory History --------- Turn | Location | Event 18 | -11/Scrapyard | Discovered new exit (range 15) 228 | -11/Scrapyard | Entered Materials 326 | -10/Materials | Build established: Mutant 486 | -10/Materials | Discovered new exit (range 13) 690 | -10/Materials | Core integrity fell below 50% 771 | -10/Materials | Discovered new exit (range 9) 1157 | -10/Materials | Discovered new exit (range 13) 1312 | -10/Materials | Discovered new exit (range 9) 1349 | -10/Materials | Repaired Grenade Launcher 1423 | -10/Materials | Discovered new exit (range 12) 1514 | -10/Materials | Entered another Materials area 1514 | -9/Materials | Evolved 2 slots: Propulsion x2 1630 | -9/Materials | Discovered new exit (range 16) 1707 | -9/Materials | Lost 4 parts (2n1u1w) 1741 | -9/Materials | Met 8R-AWN 1799 | -9/Materials | Entered Mines 1800 | -9/Mines | Followed 8R-AWN into the Mines 1931 | -9/Mines | Discovered new exit (range 5) 1935 | -9/Mines | Entered Exiles 1957 | -9/Exiles | Welcomed by 8R-AWN 1972 | -9/Exiles | Met EX-HEX 1997 | -9/Exiles | Build established: Scavenger-Mutant 2001 | -9/Exiles | Met EX-BIN 2014 | -9/Exiles | Aligned with FarCom system 2015 | -9/Exiles | Given EX-Vault access code 2036 | -9/Exiles | Opened EX-Vault 2044 | -9/Exiles | Found Lightpack 2.0 2064 | -9/Exiles | Warned to stay clear of 0b10 Research branches 2105 | -9/Exiles | Learned about 8R-AWN's background 2125 | -9/Exiles | Discovered new exit (range 14) 2136 | -9/Exiles | Left Exiles lab with Lightpack 2.0 2136 | -9/Exiles | Entered Mines 2205 | -8/Mines | Discovered new exit (range 9) 2222 | -8/Mines | Entered Materials 2222 | -8/Materials | Evolved 2 slots: Utility x2 2516 | -8/Materials | Build established: Hauler-Mutant 3437 | -8/Materials | Discovered new exit (range 4) 3473 | -8/Materials | Entered Factory 3473 | -7/Factory | Evolved 2 slots: Utility x2 3535 | -7/Factory | Identified exit to DSF 3653 | -7/Factory | Discovered new exit (range 13) 3775 | -7/Factory | Build established: Hauler-Sprinter 3840 | -7/Factory | Fabricated System Shield (x1) 3923 | -7/Factory | Fabricated System Shield? 4369 | -7/Factory | Entered another Factory area 4369 | -6/Factory | Evolved 2 slots: Utility x2 4621 | -6/Factory | Identified exit to Factory 4621 | -6/Factory | Identified exit to Lower Caves 4657 | -6/Factory | Build established: Hacker-Sprinter 4692 | -6/Factory | Fabricated System Shield (x1) 4796 | -6/Factory | Found Prototype Processor 4874 | -6/Factory | Entered another Factory area 4874 | -5/Factory | Evolved 2 slots: Utility x2 5105 | -5/Factory | Fabricated System Shield? 5178 | -5/Factory | Build established: Hacker-Scout 5226 | -5/Factory | Repaired Cesium-ion Thruster 5254 | -5/Factory | Repaired Flight Unit 5499 | -5/Factory | Discovered new exit (range 7) 5510 | -5/Factory | Identified exit to Factory 5526 | -5/Factory | Sucked down chute 5526 | -5/Factory | Entered Waste 5527 | -5/Waste | Met a frightened Derelict 5528 | -5/Waste | Spotted C-40 Crusher 5529 | -5/Waste | Spotted C-40 Crusher 5534 | -5/Waste | Spotted C-40 Crusher 5536 | -5/Waste | Spotted C-40 Crusher 5538 | -5/Waste | Spotted C-40 Crusher 5539 | -5/Waste | Discovered new exit (range 16) 5562 | -5/Waste | Build established: Hacker-Sprinter 5575 | -5/Waste | Spotted C-40 Crusher 5589 | -5/Waste | Entered Factory 5590 | -5/Factory | Identified exit to DSF 5594 | -5/Factory | Entered DSF 5628 | -5/DSF | Additional patrols routed to DSF 5651 | -5/DSF | Lost 3 parts (1n2u) 5668 | -5/DSF | Discovered exit to Factory (range 16) 5673 | -5/DSF | Entered Factory 5673 | -4/Factory | Evolved 2 slots: Power x1, Propulsion x1 5697 | -4/Factory | Lost 6 parts (1p3n1u1w) 5871 | -4/Factory | Build established: Hauler-Scout 5946 | -4/Factory | Crushed by falling debris 6043 | -4/Factory | Spotted B-86 Titan 6046 | -4/Factory | Manually triggered Chute Trap 6046 | -4/Factory | Sucked down chute 6046 | -4/Factory | Entered Waste 6047 | -4/Waste | Joined by Warlord forces that had cleared the area 6102 | -4/Waste | Found Damper Plating 6140 | -4/Waste | Found Damper Plating 6146 | -4/Waste | A Compactor rumbled back to life 6146 | -4/Waste | Allies destroyed C-40 Crusher 6200 | -4/Waste | Discovered new exit (range 12) 6233 | -4/Waste | Entered Factory 6233 | -4/Factory | Accompanied by 20 allies 6331 | -4/Factory | Lost 3 allies 6436 | -4/Factory | Lost 4 allies 6483 | -4/Factory | First assault squad dispatched 6516 | -4/Factory | Build established: Hauler-Mutant 6604 | -4/Factory | Lost 4 allies 6662 | -4/Factory | Discovered new exit (range 9) 6676 | -4/Factory | Entered Armory 6676 | -4/Armory | Accompanied by 2 allies 6677 | -4/Armory | Met VL-GR5, who suggested a friendly competition 6708 | -4/Armory | Lost 3 allies 7203 | -4/Armory | First assault squad dispatched 7259 | -4/Armory | System corruption reached 10% 7317 | -4/Armory | Lost 10 parts (1p2n6u1w) 7612 | -4/Armory | Core integrity fell below 50% 7652 | -4/Armory | Lost 10 parts (1p2n6u1w) 7925 | -4/Armory | Build established: Scavenger-Mutant 8136 | -4/Armory | Core integrity fell below 20% 8138 | -4/Armory | Released all parts (8) 8140 | -4/Armory | Destroyed by X-77 Beamer with Gatling Laser Last Messages --------------- 08133_ HV Slug penetrates Wall. 08134_ Flexi-carbon Leg destroyed. 08136_ Overheating: Core damaged (-126). 08136_ HV Slug penetrates Y-72 Warden. 08136_ HV Slug penetrates Wall. 08136_ Slug penetrates Terminal. 08137_ Hyp. Railgun destroyed. 08138_ Overheating: System interference. 08138_ Imp. Target Analyzer temporarily disabled. 08138_ Released Imp. Target Analyzer. 08138_ Released Imp. Targeting Computer. 08138_ Released Point Defense System. 08138_ Released Imp. Target Analyzer. 08138_ Released Imp. Weapon Cycler. 08138_ Released Imp. Target Analyzer. 08138_ Released Lgt. Antimatter Reactor. 08138_ Connecting with Terminal... 08139_ Penetrated by Slug. 08139_ Slug penetrates Transfer Shaft. Map ----- +----------------------------------------------------+ | ?????????????????????????????????????????????????? | | ?????????????????????????????????????????????????? | | ?????????????????????????????????????????????????? | | ?????????????????????????????????????????????????? | | ?????????????????????????????????????????????????? | | ?????????????????????????????????????????????????? | | ?????????????????????????????????????????????????? | | ?????????????????????????????????????????????????? | | ? ??????????????????????????????????????????????? | | ? ??????????????????????????????????????????????? | | # ??????????????????????????????????????????????? | | #?????????????????????????????????????????????? | | #?????????????????????????????????????????????? | | #?????????????????????????????????????????????? | | ] #???????????????????????????????Y?????????????? | | #?????????????????????????????????????????????? | | ##????????????????????????????????????????????? | | +?????????????????#####??????????????????????? | | #??????????????????#"""#??????????????????????? | | #??????####???###??#"T"###????????????????????? | | ####+###! # # ###"!"#;####?????????????????? | | ? + / Y Y!*% ! #?????????????????? | | ????? + /h h x % ##????????????????? | | #?????????# # ##"" #????????????????? | | ##????????# h####;"Y " T#????????????????? | | "#????????# "" @""" "#????????????????? | | ############ # !x "" ##????????????????? | | x h% #?????????????????? | | ############### [ #?????????????????? | | ??????????????# =[ #?????????????????? | | ?????????????# !%[ #?????????????????? | | ????????? # !! #?????????????????? | | ?????? ??# # ####;###?????????????????? | | ####????? ????# #Hx#??? ???????????????????? | | #??????????##"T"### "??? ???????????????????? | | #???????????#####?# "??? ??????????????????? | | #????????????????? ???? ??????????????????? | | #???????????###??? ??? ?????????????????? | | #??????????? ??? ??? ?????????????????? | | #??????????? ??? #??????????????????????? | | #???????????# #??? #??????????????????????? | | #???????????#!#??? ???????????????????????? | | #???????????# #????####???????????????????????? | | *! #???????????# ##??????????????????????????????? | | |!=#???????????#""#??????????????????????????????? | | ! *#???????????#!=#??????????????????????????????? | | +###???????????#]=#####??????????????????????????? | | #?????????##?##]!##""#??#########???????????????? | | [#?????????# ##"!!]# ??? # #???????????????? | | [############] =[=]#="""" # """ #???????????????? | +----------------------------------------------------+ Best States ------------- Heat Dissipation 97 Energy Generation 41 Energy Capacity 415 Matter Stores 300 Matter Capacity 300 Sight Range 16 Terrain Scan Density 10 Additional Mass Support 9 Armor Coverage 1950 Resistance: EM 90 Core Shielding 30 Point Defense Rating 80 Weapon Cycling 30 Evasion (%) 74 Targeting Accuracy 8 Target Analysis 9 Recoil Reduction 5 Kinecelleration 30 Offensive Hacking 30 Defensive Hacking 30 Item Schematics ----------------- System Shield | -7/Factory | Hacked Cld. Aerolev Unit | -6/Factory | Hacked Robot Schematics ------------------ None Fabricated ------------ System Shield | x1 | -7/Factory System Shield | x1 | -7/Factory System Shield | x1 | -6/Factory Alien Tech Used ----------------- None Achievements -------------- Packrat Wheee! Challenges ------------ None Game ------ Seed LatentTeleporterPit Manual? 0 Play Time 03:29:30 Cumulative 53.3 hours Start 2024.10.21 @ 19:42:14 End 2024.10.22 @ 00:25:04 Sessions 1 Manual Loads 0 Difficulty Rogue Special Mode None Game No. 43 Rogue 43 Adventurer 0 Explorer 0 Win Type - Total 0 Types 0/0/0/0/0/0/0/0/0 Lore% 22 Gallery% 34 Achievement% 35 Wizard Run 0 Options --------- Layout 1 ASCII 0 Keyboard 0 Movement Mouse Keybinds 0 Fullscreen 2 Font 24/X11 Map View 50x35 Zoom Use 0% Tactical HUD 1 Map Filters NONE Filters NONE Steam 1 RUN: 6fbb8a16-6aad-4c6c-b80f-f9a7644e20d9